fUSD/lending_fUSD_20251110
["ID","MTS","AMOUNT","RATE_DAILY","PERIOD"]
[393564539,1762801849676,-500.0,0.00034631,7]
[393564540,1762801849686,-600.0,0.00034631,7]
[393564541,1762801849696,-500.0,0.00034631,7]
[393564542,1762801849706,-600.0,0.00034631,7]
[393564543,1762801849718,-500.0,0.00034631,7]
[393564544,1762801849730,-600.0,0.00034631,7]
[393564545,1762801849740,-500.0,0.00034631,7]
[393564546,1762801849900,-600.0,0.00034631,7]
[393564547,1762801849911,-500.0,0.00034631,7]
[393564548,1762801849920,-600.0,0.00034631,7]
[393564549,1762801849930,-500.0,0.00034631,7]
[393564550,1762801849939,-500.66603632,0.00034631,7]
[393564551,1762801849949,-500.0,0.00034631,7]
[393564552,1762801849960,-600.0,0.00034631,7]
[393564553,1762801849971,-500.0,0.00034631,7]
[393564554,1762801849981,-600.0,0.00034631,7]
[393564555,1762801849990,-500.0,0.00034631,7]
[393564556,1762801850000,-600.0,0.00034631,7]
[393564557,1762801850009,-982.75455222,0.00034631,7]
[393564558,1762801850018,-219.13935875,0.00034631,7]
[393564559,1762801850028,-600.0,0.00034631,7]
[393564560,1762801850039,-600.0,0.00034631,7]
[393564561,1762801850048,-600.0,0.00034631,7]
[393564562,1762801850057,-152.13713097,0.00034631,7]
[393564563,1762801850066,-504.73463064,0.00034631,7]
[393564564,1762801850075,-285.30517008,0.00034631,7]
[393564565,1762801850084,-600.0,0.00034631,7]
[393564566,1762801850093,-778.3686824,0.00034631,7]
[393564567,1762801850107,-500.0,0.00034631,7]
[393564568,1762801850116,-737.77786076,0.00034631,7]
[393564569,1762801850126,-508.27223983,0.00034631,7]
[393564570,1762801850135,-4286.77,0.000347,30]
[393564571,1762801850145,-1305.4,0.00034867,30]
[393564572,1762801850155,-151.0,0.00034894,31]
[393564573,1762801850164,-151.0,0.00034894,31]
[393564574,1762801850174,-151.0,0.00034894,31]
[393564575,1762801850184,-151.0,0.00034894,31]
[393564576,1762801850193,-151.0,0.00034894,31]
[393564577,1762801850203,-151.0,0.00034894,31]
[393564578,1762801850212,-160.564856,0.00034894,31]
[393564579,1762801850223,-151.0,0.00034894,31]
[393564580,1762801850233,-161.636163,0.00034894,31]
[393564581,1762801850242,-160.564856,0.00034894,31]
[393564582,1762801850252,-160.564856,0.00034894,31]
[393564583,1762801850261,-160.564856,0.00034894,31]
[393564584,1762801850270,-151.0,0.00034894,31]
[393564585,1762801850280,-203.527445,0.00034894,31]
[393564586,1762801850289,-156.464707,0.00034894,31]
[393564587,1762801850299,-151.0,0.00034894,31]
[393564588,1762801850309,-151.0,0.00034894,31]
[393564589,1762801850319,-151.0,0.00034894,31]
[393564590,1762801850328,-151.0,0.00034894,31]
[393564591,1762801850338,-194.125555,0.00034894,31]
[393564592,1762801850348,-194.125555,0.00034894,31]
[393564593,1762801850358,-194.125555,0.00034894,31]
[393564594,1762801850368,-194.125555,0.00034894,31]
[393564595,1762801850383,-6662.0,0.00034965,2]
[393564596,1762801850394,-2142.0,0.00034965,2]
[393564597,1762801850405,-9735.50267491,0.00035,30]
[393564598,1762801850416,-514.49732509,0.00035,30]
[393564599,1762801850427,-155.18887027,0.00035158,2]
[393564600,1762801850436,-22708.74,0.000354,14]
[393564601,1762801850447,-2000.0,0.000355,2]
[393564602,1762801850456,-151.0,0.000355,31]
[393564603,1762801850465,-177.814239,0.000355,31]
[393564604,1762801850478,-151.0,0.000355,31]
[393564605,1762801850488,-151.0,0.000355,31]
[393564606,1762801850498,-999.0,0.00035616,120]
[393564607,1762801850507,-196.37,0.00035616,2]
[393564608,1762801850516,-152.0,0.000357,5]
[393564609,1762801850526,-481.11077973,0.00035908,2]
[393564610,1762801850535,-2000.0,0.00035926,120]
[393564611,1762801850545,-500.0,0.00035926,120]
[393564612,1762801850554,-645.61261135,0.0003595,2]
[393564613,1762801850566,-8021.46898445,0.00036,2]
[393564614,1762801850576,-942.17,0.00036,14]
[393564615,1762801850585,-6288.0,0.00036,120]
[393564616,1762801850595,-500.0,0.00036,5]
[393564617,1762801850604,-500.0,0.00036026,2]
[393564618,1762801850613,-8772.86,0.00036037,2]
[393564619,1762801850623,-2548.73,0.00036049,2]
[393564620,1762801850633,-151.0,0.00036164,30]
[393564621,1762801850642,-2500.65,0.0003622,2]
[393564622,1762801850651,-25000.0,0.00036287,2]
[393564623,1762801850660,-2548.74,0.00036342,2]
[393564624,1762801850670,-1000.0,0.000364,7]
[393564625,1762801850680,-967.78418003,0.00036411,5]
[393564626,1762801850690,-999.0,0.00036438,120]
[393564627,1762801850700,-7305.73241321,0.00036554,2]
[393564628,1762801851266,-17694.26758679,0.00036554,2]
[393564629,1762801851278,-2500.16,0.00036582,2]
[393564630,1762801851289,-150.0,0.00036585,2]
[393564631,1762801851299,-150.0,0.00036585,2]
[393564632,1762801851310,-1316.0,0.00036585,2]
[393564633,1762801851319,-574.0,0.00036585,2]
[393564634,1762801851329,-3426.0,0.00036585,2]
[393564635,1762801851339,-820.0,0.00036585,2]
[393564636,1762801851349,-1597.0,0.00036585,2]
[393564637,1762801851359,-813.0,0.00036585,2]
[393564638,1762801851370,-1274.0,0.00036585,2]
[393564639,1762801851380,-1189.0,0.00036585,2]
[393564640,1762801851390,-4286.77,0.000366,30]
[393564641,1762801851400,-655.65,0.00036619,2]
[393564642,1762801851410,-267.59,0.0003667,120]
[393564643,1762801851420,-479.5,0.00036674,30]
[393564644,1762801851430,-3823.71,0.000367,2]
[393564645,1762801851440,-28549.2935431,0.000367,2]
[393564646,1762801851450,-1209.88617273,0.000368,14]
[393564647,1762801851459,-5000.0,0.00036828,2]
[393564648,1762801851471,-152.62,0.00036884,60]
[393564649,1762801851481,-171.95,0.00036892,60]
[393564650,1762801851491,-25000.0,0.000369,2]
[393564651,1762801851501,-549.24,0.00036927,2]
[393564652,1762801851511,-2500.15,0.00036944,2]
[393564653,1762801851521,-257.91778498,0.00036962,2]
[393564654,1762801851531,-152.62,0.00036984,60]
[393564655,1762801851540,-152.62,0.00037084,60]
[393564656,1762801851550,-152.62,0.00037184,60]
[393564657,1762801851559,-190.95621981,0.000372,120]
[393564658,1762801851569,-999.0,0.0003726,120]
[393564659,1762801851578,-498.91187858,0.00037277,2]
[393564660,1762801851588,-152.62,0.00037284,60]
[393564661,1762801851597,-942.17,0.000373,14]
[393564662,1762801851607,-152.62,0.00037384,60]
[393564663,1762801851616,-152.62,0.00037484,60]
[393564664,1762801851625,-500.0,0.00037487,2]
[393564665,1762801851635,-152.62,0.00037584,60]
[393564666,1762801851644,-600.0,0.00037671,120]
[393564667,1762801851654,-152.62,0.00037684,60]
[393564668,1762801851663,-4286.77,0.000377,30]
[393564669,1762801851673,-300.0,0.00037762,2]
[393564670,1762801851683,-152.62,0.00037784,60]
[393564671,1762801851692,-300.0,0.00037807,2]
[393564672,1762801851702,-222.71783792,0.00037822,120]
[393564673,1762801851711,-300.0,0.00037854,2]
[393564674,1762801851721,-152.62,0.00037884,60]
[393564675,1762801851731,-5000.0,0.000379,120]
[393564676,1762801851740,-300.0,0.00037948,2]
[393564677,1762801851750,-300.0,0.00037954,2]
[393564678,1762801851760,-6662.0,0.00037965,2]
[393564679,1762801851771,-2142.0,0.00037965,2]
[393564680,1762801851780,-300.0,0.00037984,2]
[393564681,1762801851790,-152.62,0.00037984,60]
[393564682,1762801851801,-1021.27,0.00037999,120]
[393564683,1762801851810,-1021.27,0.00037999,120]
[393564684,1762801851819,-1021.27,0.00037999,120]
[393564685,1762801851828,-1021.27,0.00037999,120]
[393564686,1762801851837,-1021.27,0.00037999,120]
[393564687,1762801851847,-1021.27,0.00037999,120]
[393564688,1762801851856,-1021.27,0.00037999,120]
[393564689,1762801851871,-1021.27,0.00037999,120]
[393564690,1762801851880,-17835.999998,0.00038,7]
[393564691,1762801851890,-2000.0,0.00038,2]
[393564692,1762801851901,-277.1334681,0.00038,120]
[393564693,1762801851911,-168.0,0.00038,2]
[393564694,1762801851921,-2000.0,0.00038,2]
[393564695,1762801851931,-2000.0,0.00038,2]
[393564696,1762801851940,-2000.0,0.00038,2]
[393564697,1762801851950,-2000.0,0.00038,2]
[393564698,1762801851960,-2000.0,0.00038,2]
[393564699,1762801851975,-2000.0,0.00038,2]
[393564700,1762801851984,-2000.0,0.00038,2]
[393564701,1762801851995,-2000.0,0.00038,2]
[393564702,1762801852004,-170.63341893,0.00038,5]
[393564703,1762801852013,-1250.07,0.0003803,2]
[393564704,1762801852023,-22685.90052732,0.0003807,30]
[393564705,1762801852031,-999.0,0.00038082,120]
[393564706,1762801852042,-152.62,0.00038084,60]
[393564707,1762801852051,-300.0,0.00038091,88]
[393564708,1762801852060,-455.61928232,0.000381,33]
[393564709,1762801852069,-300.0,0.0003811,2]
[393564710,1762801852079,-675.0,0.00038165,20]
[393564711,1762801852088,-152.62,0.00038184,60]
[393564712,1762801852098,-1250.07,0.00038206,2]
[393564713,1762801852273,-152.62,0.00038284,60]
[393564714,1762801852283,-350.44,0.000383,120]
[393564715,1762801852292,-500.0,0.00038355,2]
[393564716,1762801852301,-3218.0,0.00038356,5]
[393564717,1762801852310,-1000.0,0.00038356,2]
[393564718,1762801852320,-1000.0,0.00038356,2]
[393564719,1762801852329,-1000.0,0.00038356,2]
[393564720,1762801852339,-1000.0,0.00038356,2]
[393564721,1762801852348,-1000.0,0.00038356,2]
[393564722,1762801852357,-1000.0,0.00038356,2]
[393564723,1762801852366,-1000.0,0.00038356,2]
[393564724,1762801852376,-1000.0,0.00038356,2]
[393564725,1762801852385,-1000.0,0.00038356,2]
[393564726,1762801852394,-1000.0,0.00038356,2]
[393564727,1762801852404,-1000.0,0.00038356,2]
[393564728,1762801852414,-1000.0,0.00038356,2]
[393564729,1762801852423,-1028.37693784,0.00038356,2]
[393564730,1762801852432,-500.0,0.00038356,2]
[393564731,1762801852442,-500.0,0.00038356,2]
[393564732,1762801852451,-500.0,0.00038356,2]
[393564733,1762801852460,-500.0,0.00038356,2]
[393564734,1762801852472,-500.0,0.00038356,2]
[393564735,1762801852482,-500.0,0.00038356,2]
[393564736,1762801852491,-500.0,0.00038356,2]
[393564737,1762801852502,-500.0,0.00038356,2]
[393564738,1762801852511,-500.0,0.00038356,2]
[393564739,1762801852521,-500.0,0.00038356,2]
[393564740,1762801852531,-500.0,0.00038356,2]
[393564741,1762801852550,-500.0,0.00038356,2]
[393564742,1762801852563,-500.0,0.00038356,2]
[393564743,1762801852573,-500.0,0.00038356,2]
[393564744,1762801852583,-500.0,0.00038356,2]
[393564745,1762801852593,-500.0,0.00038356,2]
[393564746,1762801852603,-500.0,0.00038356,2]
[393564747,1762801852612,-500.0,0.00038356,2]
[393564748,1762801852622,-500.0,0.00038356,2]
[393564749,1762801852631,-446.48208693,0.00038356,2]
[393564750,1762801852640,-500.0,0.00038356,2]
[393564751,1762801852649,-500.0,0.00038356,2]
[393564752,1762801852659,-613.32851672,0.00038356,2]
[393564753,1762801852669,-1374.1,0.00038356,2]
[393564754,1762801852678,-1374.1,0.00038356,2]
[393564755,1762801852688,-1374.1,0.00038356,2]
[393564756,1762801852697,-1374.1,0.00038356,2]
[393564757,1762801852707,-1374.1,0.00038356,2]
[393564758,1762801852718,-1374.1,0.00038356,2]
[393564759,1762801852728,-1374.1,0.00038356,2]
[393564760,1762801852738,-1374.1,0.00038356,2]
[393564761,1762801852747,-1374.1,0.00038356,2]
[393564762,1762801852755,-1374.1,0.00038356,2]
[393564763,1762801852765,-1374.1,0.00038356,2]
[393564764,1762801852774,-1374.1,0.00038356,2]
[393564765,1762801852783,-1374.1,0.00038356,2]
[393564766,1762801852793,-1374.1,0.00038356,2]
[393564767,1762801852803,-1374.1,0.00038356,2]
[393564768,1762801852813,-1374.1,0.00038356,2]
[393564769,1762801852823,-1374.1,0.00038356,2]
[393564770,1762801852832,-1374.1,0.00038356,2]
[393564771,1762801852842,-1374.1,0.00038356,2]
[393564772,1762801852851,-1374.1,0.00038356,2]
[393564773,1762801852862,-1374.1,0.00038356,2]
[393564774,1762801852872,-1374.1,0.00038356,2]
[393564775,1762801852882,-1374.1,0.00038356,2]
[393564776,1762801852891,-1374.23454808,0.00038356,2]
[393564777,1762801852901,-467.61772559,0.00038356,120]
[393564778,1762801852911,-1163.03,0.00038356,2]
[393564779,1762801852921,-1163.03,0.00038356,2]
[393564780,1762801852930,-1163.03,0.00038356,2]
[393564781,1762801852940,-1163.03,0.00038356,2]
[393564782,1762801852950,-1163.03,0.00038356,2]
[393564783,1762801852963,-1163.03,0.00038356,2]
[393564784,1762801852974,-1163.03,0.00038356,2]
[393564785,1762801852984,-1163.03,0.00038356,2]
[393564786,1762801852994,-1163.03,0.00038356,2]
[393564787,1762801853006,-1163.03,0.00038356,2]
[393564788,1762801853016,-1163.03,0.00038356,2]
[393564789,1762801853027,-1163.03,0.00038356,2]
[393564790,1762801853037,-1163.03,0.00038356,2]
[393564791,1762801853047,-1163.03,0.00038356,2]
[393564792,1762801853058,-1163.03,0.00038356,2]
[393564793,1762801853069,-1163.03,0.00038356,2]
[393564794,1762801853079,-1163.03,0.00038356,2]
[393564795,1762801853090,-1163.03,0.00038356,2]
[393564796,1762801853101,-1163.03,0.00038356,2]
[393564797,1762801853111,-1163.03,0.00038356,2]
[393564798,1762801853122,-1163.03,0.00038356,2]
[393564799,1762801853131,-1163.03,0.00038356,2]
[393564800,1762801853141,-1163.03,0.00038356,2]
[393564801,1762801853151,-1163.05193667,0.00038356,2]
[393564802,1762801853160,-300.0,0.00038356,2]
[393564803,1762801853171,-300.0,0.00038356,2]
[393564804,1762801853188,-300.0,0.00038356,2]
[393564805,1762801853198,-300.0,0.00038356,2]
[393564806,1762801853209,-300.0,0.00038356,2]
[393564807,1762801853221,-300.0,0.00038356,2]
[393564808,1762801853231,-300.0,0.00038356,2]
[393564809,1762801853241,-300.0,0.00038356,2]
[393564810,1762801853253,-300.0,0.00038356,2]
[393564811,1762801853263,-300.0,0.00038356,2]
[393564812,1762801853274,-300.0,0.00038356,2]
[393564813,1762801853284,-300.0,0.00038356,2]
[393564814,1762801853296,-300.0,0.00038356,2]
[393564815,1762801853306,-333.40328937,0.00038356,2]
[393564816,1762801853317,-515.39494023,0.00038356,10]
[393564817,1762801853328,-500.0,0.00038356,2]
[393564818,1762801853338,-944.56894104,0.00038356,120]
[393564819,1762801853349,-152.0,0.00038359,6]
[393564820,1762801853359,-300.0,0.00038378,2]
[393564821,1762801853369,-152.62,0.00038384,120]
[393564822,1762801853379,-942.17,0.000384,14]
[393564823,1762801853388,-9477.40597512,0.000384,120]
[393564824,1762801853398,-300.0,0.00038468,2]
[393564825,1762801853408,-152.62,0.00038484,120]
[393564826,1762801853418,-23765.83064379,0.000385,30]
[393564827,1762801853428,-300.0,0.00038525,2]
[393564828,1762801853438,-675.0,0.00038559,20]
[393564829,1762801853448,-300.0,0.00038561,2]
[393564830,1762801853458,-300.0,0.00038568,2]
[393564831,1762801853468,-152.62,0.00038584,120]
[393564832,1762801853478,-300.0,0.00038594,2]
[393564833,1762801853488,-300.0,0.00038595,2]
[393564834,1762801853498,-300.0,0.00038596,2]
[393564835,1762801853508,-781.4722802,0.00038628,120]
[393564836,1762801853518,-500.0,0.00038631,7]
[393564837,1762801853528,-500.0,0.00038631,7]
[393564838,1762801853538,-500.0,0.00038631,7]
[393564839,1762801853547,-500.0,0.00038631,7]
[393564840,1762801853557,-500.0,0.00038631,7]
[393564841,1762801853567,-500.0,0.00038631,7]
[393564842,1762801853577,-500.0,0.00038631,7]
[393564843,1762801853586,-500.0,0.00038631,7]
[393564844,1762801853596,-500.0,0.00038631,7]
[393564845,1762801853606,-504.69,0.00038631,7]
[393564846,1762801853617,-517.37161808,0.00038646,2]
[393564847,1762801853627,-152.62,0.00038684,120]
[393564848,1762801853637,-1021.27,0.00038692,120]
[393564849,1762801853647,-500.0,0.00038712,2]
[393564850,1762801853657,-1021.27,0.00038712,120]
[393564851,1762801853667,-300.0,0.0003872,2]
[393564852,1762801853677,-300.0,0.00038726,2]
[393564853,1762801853687,-85587.70970035,0.0003874,30]
[393564854,1762801853696,-300.0,0.00038742,2]
[393564855,1762801853706,-300.0,0.00038783,2]
[393564856,1762801853716,-152.62,0.00038784,120]
[393564857,1762801853726,-300.0,0.00038785,2]
[393564858,1762801853736,-151.0,0.00038797,14]
[393564859,1762801853746,-28488.72248741,0.000388,30]
[393564860,1762801853756,-4286.77,0.000388,30]
[393564861,1762801853767,-880.02878388,0.000388,60]
[393564862,1762801853778,-205758.25719683,0.000388,2]
[393564863,1762801853788,-178.13537007,0.000388,120]
[393564864,1762801853798,-178.13537005,0.000388,120]
[393564865,1762801853807,-178.13537005,0.000388,120]
[393564866,1762801853817,-178.13537005,0.000388,120]
[393564867,1762801853827,-298713.3165247,0.00038811,120]
[393564868,1762801853837,-151.0,0.00038811,120]
[393564869,1762801853846,-151.0,0.00038811,120]
[393564870,1762801853856,-151.0,0.00038811,120]
[393564871,1762801853867,-151.0,0.00038811,120]
[393564872,1762801853877,-151.0,0.00038811,120]
[393564873,1762801853887,-151.0,0.00038811,120]
[393564874,1762801853897,-151.0,0.00038811,120]
[393564875,1762801853907,-151.0,0.00038811,120]
[393564876,1762801853917,-167.097703,0.00038811,120]
[393564877,1762801853927,-151.0,0.00038811,120]
[393564878,1762801853938,-151.0,0.00038811,120]
[393564879,1762801853948,-151.0,0.00038811,120]
[393564880,1762801853960,-151.0,0.00038811,120]
[393564881,1762801853973,-151.0,0.00038811,120]
[393564882,1762801853983,-151.0,0.00038811,30]
[393564883,1762801853994,-151.0,0.00038811,30]
[393564884,1762801854004,-151.0,0.00038811,120]
[393564885,1762801854014,-151.0,0.00038811,120]
[393564886,1762801854024,-255.545423,0.00038811,120]
[393564887,1762801854035,-255.545423,0.00038811,120]
[393564888,1762801854048,-255.545423,0.00038811,120]
[393564889,1762801854058,-255.545423,0.00038811,120]
[393564890,1762801854069,-214.91846,0.00038811,120]
[393564891,1762801854080,-214.91846,0.00038811,120]
[393564892,1762801854090,-214.91846,0.00038811,120]
[393564893,1762801854100,-214.91846,0.00038811,120]
[393564894,1762801854111,-151.0,0.00038811,120]
[393564895,1762801854120,-151.0,0.00038811,120]
[393564896,1762801854130,-151.0,0.00038811,60]
[393564897,1762801854140,-151.0,0.00038811,120]
[393564898,1762801854151,-151.0,0.00038811,120]
[393564899,1762801854161,-151.0,0.00038811,120]
[393564900,1762801854171,-151.0,0.00038811,120]
[393564901,1762801854189,-151.0,0.00038811,120]
[393564902,1762801854200,-243.222102,0.00038811,120]
[393564903,1762801854210,-151.0,0.00038811,120]
[393564904,1762801854221,-151.0,0.00038811,120]
[393564905,1762801854231,-151.0,0.00038811,120]
[393564906,1762801854241,-151.0,0.00038811,120]
[393564907,1762801854251,-151.0,0.00038811,120]
[393564908,1762801854261,-151.0,0.00038811,120]
[393564909,1762801854271,-151.0,0.00038811,120]
[393564910,1762801854281,-151.0,0.00038811,120]
[393564911,1762801854291,-151.0,0.00038811,120]
[393564912,1762801854301,-151.0,0.00038811,120]
[393564913,1762801854310,-151.0,0.00038811,120]
[393564914,1762801854319,-151.0,0.00038811,120]
[393564915,1762801854329,-151.0,0.00038811,120]
[393564916,1762801854338,-151.0,0.00038811,120]
[393564917,1762801854348,-151.0,0.00038811,120]
[393564918,1762801854358,-151.0,0.00038811,120]
[393564919,1762801854367,-151.0,0.00038811,120]
[393564920,1762801854377,-151.0,0.00038811,120]
[393564921,1762801854387,-151.0,0.00038811,120]
[393564922,1762801854396,-151.0,0.00038811,120]
[393564923,1762801854406,-151.0,0.00038811,120]
[393564924,1762801854415,-151.0,0.00038811,120]
[393564925,1762801854425,-151.0,0.00038811,120]
[393564926,1762801854434,-151.0,0.00038811,120]
[393564927,1762801854444,-151.0,0.00038811,120]
[393564928,1762801854453,-151.0,0.00038811,28]
[393564929,1762801854463,-151.0,0.00038811,120]
[393564930,1762801854476,-236.50012,0.00038811,120]
[393564931,1762801854486,-151.0,0.00038811,120]
[393564932,1762801854495,-151.0,0.00038811,120]
[393564933,1762801854505,-151.0,0.00038811,120]
[393564934,1762801854515,-151.0,0.00038811,120]
[393564935,1762801854524,-151.0,0.00038811,120]
[393564936,1762801854534,-151.0,0.00038811,120]
[393564937,1762801854544,-151.0,0.00038811,120]
[393564938,1762801854554,-151.0,0.00038811,120]
[393564939,1762801854564,-151.0,0.00038811,120]
[393564940,1762801854574,-151.0,0.00038811,120]
[393564941,1762801854583,-151.0,0.00038811,120]
[393564942,1762801854593,-151.0,0.00038811,30]
[393564943,1762801854603,-151.0,0.00038811,15]
[393564944,1762801854613,-290.941608,0.00038811,120]
[393564945,1762801854623,-151.0,0.00038811,120]
[393564946,1762801854633,-151.0,0.00038811,120]
[393564947,1762801854643,-151.0,0.00038811,120]
[393564948,1762801854655,-170.02438,0.00038811,120]
[393564949,1762801854665,-151.0,0.00038811,120]
[393564950,1762801854675,-151.0,0.00038811,120]
[393564951,1762801854685,-203.652641,0.00038811,120]
[393564952,1762801854843,-203.652641,0.00038811,120]
[393564953,1762801854855,-189.318686,0.00038811,120]
[393564954,1762801854865,-203.652641,0.00038811,120]
[393564955,1762801854875,-203.652641,0.00038811,120]
[393564956,1762801854885,-151.0,0.00038811,95]
[393564957,1762801854896,-151.0,0.00038811,120]
[393564958,1762801854906,-151.0,0.00038811,120]
[393564959,1762801854916,-151.0,0.00038811,120]
[393564960,1762801854926,-151.0,0.00038811,120]
[393564961,1762801854935,-151.0,0.00038811,120]
[393564962,1762801854944,-151.0,0.00038811,120]
[393564963,1762801854957,-160.535931,0.00038811,120]
[393564964,1762801854967,-177.410149,0.00038811,120]
[393564965,1762801854978,-151.0,0.00038811,120]
[393564966,1762801854987,-151.0,0.00038811,120]
[393564967,1762801854998,-151.0,0.00038811,120]
[393564968,1762801855008,-151.0,0.00038811,120]
[393564969,1762801855019,-151.0,0.00038811,120]
[393564970,1762801855029,-286.113687,0.00038811,120]
[393564971,1762801855039,-151.0,0.00038811,30]
[393564972,1762801855048,-151.0,0.00038811,120]
[393564973,1762801855057,-300.0,0.0003882,2]
[393564974,1762801855068,-266.90100162,0.0003884,50]
[393564975,1762801855077,-300.0,0.00038847,2]
[393564976,1762801855087,-300.0,0.00038853,2]
[393564977,1762801855096,-150.0,0.00038859,7]
[393564978,1762801855105,-300.0,0.00038865,2]
[393564979,1762801855115,-300.0,0.00038869,2]
[393564980,1762801855124,-300.0,0.00038869,2]
[393564981,1762801855133,-152.62,0.00038884,120]
[393564982,1762801855143,-300.0,0.00038886,2]
[393564983,1762801855152,-283.533,0.00038888,30]
[393564984,1762801855162,-20305.0,0.000389,60]
[393564985,1762801855171,-5000.0,0.000389,120]
[393564986,1762801855180,-999.0,0.00038904,120]
[393564987,1762801855190,-300.0,0.00038911,2]
[393564988,1762801855199,-300.0,0.00038915,2]
[393564989,1762801855209,-300.0,0.00038924,2]
[393564990,1762801855219,-300.0,0.00038952,2]
[393564991,1762801855230,-675.0,0.00038952,20]
[393564992,1762801855240,-1315.871917,0.00038966,2]
[393564993,1762801855250,-152.62,0.00038984,120]
[393564994,1762801855259,-861.28,0.00038987,5]
[393564995,1762801855269,-300.0,0.00038987,2]
[393564996,1762801855279,-300.0,0.00038993,2]
[393564997,1762801855289,-27866.10163114,0.00039,2]
[393564998,1762801855298,-5852.70316652,0.00039,30]
[393564999,1762801855316,-4482.52845841,0.00039,30]
[393565000,1762801855330,-16184.48911962,0.00039,30]
[393565001,1762801855345,-151.0,0.00038811,30]
[393565002,1762801855355,-747.16766358,0.00039,30]
[393565003,1762801855370,-53992.55076737,0.00039,30]
[393565004,1762801855379,-37481.19768968,0.00039,30]
[393565005,1762801855389,-168.0,0.00039,30]
[393565006,1762801855399,-504.63423517,0.00039,2]
[393565007,1762801855409,-4000.75170146,0.00039,2]
[393565008,1762801855419,-151.0,0.00039,90]
[393565009,1762801855428,-151.0,0.00039,120]
[393565010,1762801855438,-151.0,0.00039,120]
[393565011,1762801855448,-151.0,0.00039,120]
[393565012,1762801855457,-151.0,0.00039,120]
[393565013,1762801855467,-151.0,0.00039,120]
[393565014,1762801855477,-151.0,0.00039,120]
[393565015,1762801855486,-151.0,0.00039,120]
[393565016,1762801855496,-151.0,0.00039,120]
[393565017,1762801855505,-160.564856,0.00039,120]
[393565018,1762801855515,-151.0,0.00039,120]
[393565019,1762801855524,-160.564856,0.00039,120]
[393565020,1762801855533,-160.564856,0.00039,120]
[393565021,1762801855543,-160.564856,0.00039,120]
[393565022,1762801855552,-151.0,0.00039,120]
[393565023,1762801855563,-151.0,0.00039,120]
[393565024,1762801855574,-151.0,0.00039,120]
[393565025,1762801855584,-151.0,0.00039,120]
[393565026,1762801855593,-194.125555,0.00039,120]
[393565027,1762801855603,-194.125555,0.00039,120]
[393565028,1762801855612,-194.125555,0.00039,120]
[393565029,1762801855621,-194.125555,0.00039,120]
[393565030,1762801855631,-200000.0,0.00039,120]
[393565031,1762801855641,-1008.0,0.00039,7]
[393565032,1762801855650,-300.0,0.00039003,2]
[393565033,1762801855659,-300.0,0.00039009,2]
[393565034,1762801855669,-300.0,0.00039011,2]
[393565035,1762801855679,-300.0,0.00039018,2]
[393565036,1762801855688,-300.0,0.00039018,2]
[393565037,1762801855697,-300.0,0.00039029,2]
[393565038,1762801855707,-300.0,0.00039036,2]